[Event "*** SCC Grand Prix: Titled Tuesday Blitz"]
[Site "Chess.com"]
[Date "2020.06.23"]
[Round "6"]
[White "hectorfiori"]
[Black "CalinGheorghiu"]
[Result "0-1"]
[WhiteElo "2316"]
[BlackElo "2381"]
[TimeControl "180+1"]
[EndTime "11:05:57 PDT"]
[Termination "CalinGheorghiu won by resignation"]

1. e4 {[%clk 0:03:00.9]} 1... c5 {[%clk 0:02:58.3]} 2. Nf3 {[%clk 0:03:01.1]}
2... d6 {[%clk 0:02:58.3]} 3. d4 {[%clk 0:03:01.6]} 3... cxd4 {[%clk 0:02:58.8]}
4. Qxd4 {[%clk 0:03:02.1]} 4... Nc6 {[%clk 0:02:54.6]} 5. Bb5 {[%clk 0:03:01.6]}
5... Bd7 {[%clk 0:02:55]} 6. Bxc6 {[%clk 0:03:01.9]} 6... Bxc6 {[%clk
0:02:55.4]} 7. Nc3 {[%clk 0:03:02.5]} 7... e6 {[%clk 0:02:55.6]} 8. Bg5 {[%clk
0:03:02.3]} 8... Nf6 {[%clk 0:02:55.7]} 9. O-O-O {[%clk 0:03:02.7]} 9... Be7
{[%clk 0:02:56.1]} 10. Rhe1 {[%clk 0:03:02.7]} 10... O-O {[%clk 0:02:55.6]} 11.
Kb1 {[%clk 0:03:03.2]} 11... Rc8 {[%clk 0:02:54.5]} 12. Qd2 {[%clk 0:02:57.3]}
12... b5 {[%clk 0:02:39.9]} 13. Nd4 {[%clk 0:02:54.3]} 13... b4 {[%clk
0:02:40.1]} 14. Nxc6 {[%clk 0:02:41]} 14... Rxc6 {[%clk 0:02:14.3]} 15. Bxf6
{[%clk 0:02:08.9]} 15... Bxf6 {[%clk 0:02:07.9]} 16. Na4 {[%clk 0:02:07.7]}
16... Qa5 {[%clk 0:02:03.4]} 17. b3 {[%clk 0:02:07.3]} 17... Qe5 {[%clk
0:01:51.7]} 18. c3 {[%clk 0:01:56.6]} 18... bxc3 {[%clk 0:01:51.5]} 19. Qc2
{[%clk 0:01:56.8]} 19... Rb8 {[%clk 0:01:42.7]} 20. g3 {[%clk 0:01:54.8]} 20...
Ra6 {[%clk 0:01:22.7]} 21. f4 {[%clk 0:01:38.7]} 21... Qa5 {[%clk 0:01:21.8]}
22. Ka1 {[%clk 0:01:24.1]} 22... g6 {[%clk 0:01:15.4]} 23. h4 {[%clk 0:01:20.4]}
23... Qb5 {[%clk 0:00:50.8]} 24. e5 {[%clk 0:00:48]} 24... dxe5 {[%clk
0:00:48.6]} 25. fxe5 {[%clk 0:00:48]} 25... Bxe5 {[%clk 0:00:47.4]} 26. Re4
{[%clk 0:00:45.1]} 26... Bg7 {[%clk 0:00:42.6]} 27. Rc4 {[%clk 0:00:39.4]} 27...
Qf5 {[%clk 0:00:18.3]} 28. Qxf5 {[%clk 0:00:33.4]} 28... c2+ {[%clk 0:00:17.4]}
29. Rdd4 {[%clk 0:00:20.5]} 29... exf5 {[%clk 0:00:13.7]} 30. Nb2 {[%clk
0:00:20.6]} 30... Bxd4 {[%clk 0:00:12.9]} 31. Rxc2 {[%clk 0:00:21.3]} 31... Rxb3
{[%clk 0:00:12.2]} 32. Kb1 {[%clk 0:00:20.6]} 32... Rxg3 {[%clk 0:00:11]} 0-1

[Event "*** SCC Grand Prix: Titled Tuesday Blitz"]
[Site "Chess.com"]
[Date "2020.06.23"]
[Round "6"]
[White "WelshTiger"]
[Black "rugbyclub"]
[Result "1-0"]
[WhiteElo "2368"]
[BlackElo "2132"]
[TimeControl "180+1"]
[EndTime "11:05:57 PDT"]
[Termination "WelshTiger won by resignation"]

1. e4 {[%clk 0:03:00.9]} 1... e5 {[%clk 0:02:58.9]} 2. Nf3 {[%clk 0:03:00.1]}
2... Nc6 {[%clk 0:02:59.3]} 3. Nc3 {[%clk 0:03:00.4]} 3... Nf6 {[%clk
0:02:58.4]} 4. d4 {[%clk 0:03:00.7]} 4... exd4 {[%clk 0:02:57.9]} 5. Nxd4 {[%clk
0:03:01.1]} 5... Bb4 {[%clk 0:02:58.2]} 6. Nxc6 {[%clk 0:03:00.5]} 6... bxc6
{[%clk 0:02:58.7]} 7. Bd3 {[%clk 0:03:00.8]} 7... d5 {[%clk 0:02:58.8]} 8. exd5
{[%clk 0:03:01.1]} 8... cxd5 {[%clk 0:02:59.5]} 9. O-O {[%clk 0:03:00.4]} 9...
O-O {[%clk 0:03:00]} 10. h3 {[%clk 0:03:00.2]} 10... h6 {[%clk 0:02:54.8]} 11.
Qf3 {[%clk 0:02:58.6]} 11... c6 {[%clk 0:02:54.4]} 12. Bf4 {[%clk 0:02:57.9]}
12... Be6 {[%clk 0:02:53.9]} 13. Ne2 {[%clk 0:02:52.4]} 13... Bd6 {[%clk
0:02:53.7]} 14. Nd4 {[%clk 0:02:48.8]} 14... Bxf4 {[%clk 0:02:42.3]} 15. Qxf4
{[%clk 0:02:48.7]} 15... c5 {[%clk 0:02:37.6]} 16. Nxe6 {[%clk 0:02:42.3]} 16...
fxe6 {[%clk 0:02:38.5]} 17. Qe5 {[%clk 0:02:42.5]} 17... Qb6 {[%clk 0:02:34.4]}
18. b3 {[%clk 0:02:40.1]} 18... Nd7 {[%clk 0:02:29.9]} 19. Qe3 {[%clk 0:02:28]}
19... e5 {[%clk 0:02:25.9]} 20. c4 {[%clk 0:02:16.8]} 20... d4 {[%clk
0:02:04.1]} 21. Qe4 {[%clk 0:02:14.3]} 21... Nf6 {[%clk 0:01:42.3]} 22. Qxe5
{[%clk 0:02:13.9]} 22... Rae8 {[%clk 0:01:42.3]} 23. Qf5 {[%clk 0:02:05.6]}
23... Re7 {[%clk 0:01:41.6]} 24. Rfe1 {[%clk 0:02:04.1]} 24... Rfe8 {[%clk
0:01:41.5]} 25. Rxe7 {[%clk 0:02:01.7]} 25... Rxe7 {[%clk 0:01:42.4]} 26. Kf1
{[%clk 0:01:55.2]} 26... Qd6 {[%clk 0:01:40.9]} 27. g3 {[%clk 0:01:51.1]} 27...
Re5 {[%clk 0:01:35]} 28. Qc8+ {[%clk 0:01:39.9]} 28... Re8 {[%clk 0:01:33.6]}
29. Qb7 {[%clk 0:01:40]} 29... Qe6 {[%clk 0:01:23.5]} 30. Kg2 {[%clk 0:01:37.8]}
30... a5 {[%clk 0:01:21.4]} 31. Qf3 {[%clk 0:01:29.1]} 31... Qe5 {[%clk
0:01:06.9]} 32. Rc1 {[%clk 0:01:17.7]} 32... g5 {[%clk 0:01:03.7]} 33. Rc2
{[%clk 0:01:17.5]} 33... Kg7 {[%clk 0:00:58]} 34. Re2 {[%clk 0:01:16.9]} 34...
Qb8 {[%clk 0:00:57.5]} 35. Rxe8 {[%clk 0:01:13.1]} 35... Qxe8 {[%clk 0:00:58.4]}
36. Qf5 {[%clk 0:01:13.3]} 36... Qf8 {[%clk 0:00:20.9]} 37. Qe5 {[%clk
0:01:08.9]} 37... Qa8+ {[%clk 0:00:16.7]} 38. Kg1 {[%clk 0:01:00.8]} 38... Qf3
{[%clk 0:00:16.3]} 39. Qe7+ {[%clk 0:01:00.9]} 39... Kg8 {[%clk 0:00:16.5]} 40.
Bg6 {[%clk 0:01:00.3]} 40... d3 {[%clk 0:00:10.2]} 41. Qd8+ {[%clk 0:00:49.6]}
41... Kg7 {[%clk 0:00:10.3]} 42. Bxd3 {[%clk 0:00:50.1]} 42... Qd1+ {[%clk
0:00:09.4]} 43. Kg2 {[%clk 0:00:49.9]} 43... g4 {[%clk 0:00:08.6]} 44. Qe7+
{[%clk 0:00:47.6]} 1-0

[Event "*** SCC Grand Prix: Titled Tuesday Blitz"]
[Site "Chess.com"]
[Date "2020.06.23"]
[Round "6"]
[White "MuhittinBuker"]
[Black "BJthechessgod"]
[Result "0-1"]
[WhiteElo "1901"]
[BlackElo "2212"]
[TimeControl "180+1"]
[EndTime "11:05:58 PDT"]
[Termination "BJthechessgod won by checkmate"]

1. d4 {[%clk 0:03:00.9]} 1... Nf6 {[%clk 0:02:58.5]} 2. c4 {[%clk 0:02:57.7]}
2... e6 {[%clk 0:02:57.1]} 3. Nf3 {[%clk 0:02:56.5]} 3... b6 {[%clk 0:02:55.3]}
4. Nc3 {[%clk 0:02:54.6]} 4... Bb4 {[%clk 0:02:52.3]} 5. g3 {[%clk 0:02:53.7]}
5... Bb7 {[%clk 0:02:51.1]} 6. Bg2 {[%clk 0:02:53.2]} 6... O-O {[%clk
0:02:51.2]} 7. O-O {[%clk 0:02:53.3]} 7... Bxc3 {[%clk 0:02:50.4]} 8. bxc3
{[%clk 0:02:53]} 8... Ne4 {[%clk 0:02:51.3]} 9. Qc2 {[%clk 0:02:52.5]} 9... d6
{[%clk 0:02:50.9]} 10. Ne1 {[%clk 0:02:48]} 10... f5 {[%clk 0:02:47.9]} 11. f3
{[%clk 0:02:47.8]} 11... Nf6 {[%clk 0:02:47.2]} 12. e4 {[%clk 0:02:42.3]} 12...
fxe4 {[%clk 0:02:43.1]} 13. fxe4 {[%clk 0:02:41.8]} 13... Nbd7 {[%clk 0:02:44]}
14. h3 {[%clk 0:02:29.8]} 14... e5 {[%clk 0:02:42.5]} 15. Be3 {[%clk 0:02:27.8]}
15... Qe7 {[%clk 0:02:40.5]} 16. d5 {[%clk 0:02:24.8]} 16... Nh5 {[%clk
0:02:29.9]} 17. Kh2 {[%clk 0:02:13.5]} 17... Rxf1 {[%clk 0:02:27.5]} 18. Bxf1
{[%clk 0:02:13.5]} 18... Rf8 {[%clk 0:02:27.7]} 19. Ng2 {[%clk 0:02:12.6]} 19...
Qf6 {[%clk 0:02:23.8]} 20. Be2 {[%clk 0:02:06.5]} 20... Qg6 {[%clk 0:02:18.5]}
21. Bg4 {[%clk 0:01:48.6]} 21... Ndf6 {[%clk 0:02:17.5]} 22. Be6+ {[%clk
0:01:42.4]} 22... Kh8 {[%clk 0:02:16.7]} 23. Qf2 {[%clk 0:01:39.5]} 23... Ng4+
{[%clk 0:02:05.2]} 24. Bxg4 {[%clk 0:01:36.6]} 24... Rxf2 {[%clk 0:02:04.8]} 25.
Bxf2 {[%clk 0:01:36.3]} 25... Nf6 {[%clk 0:02:04.3]} 26. Bf5 {[%clk 0:01:34.8]}
26... Qe8 {[%clk 0:02:01]} 27. Be3 {[%clk 0:01:34.2]} 27... Ba6 {[%clk
0:01:59.6]} 28. g4 {[%clk 0:01:25.4]} 28... Bxc4 {[%clk 0:01:57.9]} 29. g5
{[%clk 0:01:25.7]} 29... Ng8 {[%clk 0:01:57.1]} 30. g6 {[%clk 0:01:12.6]} 30...
hxg6 {[%clk 0:01:54]} 31. Be6 {[%clk 0:01:12.8]} 31... Nf6 {[%clk 0:01:53.6]}
32. Nh4 {[%clk 0:01:11.1]} 32... Nxe4 {[%clk 0:01:49.6]} 33. Rg1 {[%clk
0:01:10]} 33... g5 {[%clk 0:01:39.2]} 34. Bxg5 {[%clk 0:01:09.2]} 34... Nxg5
{[%clk 0:01:38.4]} 35. Rxg5 {[%clk 0:01:09.1]} 35... Bd3 {[%clk 0:01:31.6]} 36.
Nf5 {[%clk 0:01:01.4]} 36... Bxf5 {[%clk 0:01:30.6]} 37. Rxf5 {[%clk 0:01:01.3]}
37... c6 {[%clk 0:01:07.3]} 38. Kg3 {[%clk 0:00:54.8]} 38... Qg6+ {[%clk
0:01:04.8]} 39. Kf3 {[%clk 0:00:49.8]} 39... Qh6 {[%clk 0:00:47.5]} 40. Kg4
{[%clk 0:00:44.9]} 40... g6 {[%clk 0:00:43.3]} 41. Rf7 {[%clk 0:00:41.2]} 41...
Qh5+ {[%clk 0:00:41.1]} 42. Kg3 {[%clk 0:00:40.6]} 42... Qg5+ {[%clk 0:00:40.9]}
43. Kf3 {[%clk 0:00:39.2]} 43... Qd2 {[%clk 0:00:35.3]} 44. Kg4 {[%clk
0:00:32.4]} 44... cxd5 {[%clk 0:00:34.5]} 45. h4 {[%clk 0:00:25.4]} 45... Qg2#
{[%clk 0:00:33.6]} 0-1

[Event "*** SCC Grand Prix: Titled Tuesday Blitz"]
[Site "Chess.com"]
[Date "2020.06.23"]
[Round "6"]
[White "Leonid_Starozhilov"]
[Black "vladislavkovalev"]
[Result "0-1"]
[WhiteElo "2721"]
[BlackElo "2909"]
[TimeControl "180+1"]
[EndTime "11:06:00 PDT"]
[Termination "vladislavkovalev won by resignation"]

1. e4 {[%clk 0:03:00.9]} 1... e5 {[%clk 0:03:00.1]} 2. Nf3 {[%clk 0:03:01.1]}
2... Nc6 {[%clk 0:03:00.8]} 3. Bc4 {[%clk 0:03:01.6]} 3... Nf6 {[%clk
0:03:00.9]} 4. d3 {[%clk 0:03:02]} 4... Bc5 {[%clk 0:03:01.4]} 5. Nc3 {[%clk
0:03:01.4]} 5... a6 {[%clk 0:03:00.9]} 6. Be3 {[%clk 0:03:01.4]} 6... d6 {[%clk
0:03:00.9]} 7. h3 {[%clk 0:03:01.2]} 7... h6 {[%clk 0:03:00.1]} 8. a3 {[%clk
0:02:57.9]} 8... O-O {[%clk 0:02:56.4]} 9. O-O {[%clk 0:02:57.8]} 9... Nd4
{[%clk 0:02:45.8]} 10. Bxd4 {[%clk 0:02:55]} 10... exd4 {[%clk 0:02:46.7]} 11.
Ne2 {[%clk 0:02:55.1]} 11... d5 {[%clk 0:02:43.6]} 12. exd5 {[%clk 0:02:48.6]}
12... Nxd5 {[%clk 0:02:44.5]} 13. Qd2 {[%clk 0:02:29]} 13... Ne7 {[%clk
0:02:18.2]} 14. Rae1 {[%clk 0:02:07.3]} 14... b5 {[%clk 0:02:13.9]} 15. Bb3
{[%clk 0:02:06.9]} 15... Bb7 {[%clk 0:02:14.4]} 16. Ne5 {[%clk 0:01:58.8]} 16...
Bd6 {[%clk 0:02:09.2]} 17. Nf4 {[%clk 0:01:42.2]} 17... c5 {[%clk 0:01:48.8]}
18. Qe2 {[%clk 0:01:13.4]} 18... Qc7 {[%clk 0:01:35.9]} 19. Qh5 {[%clk 0:00:55]}
19... Kh7 {[%clk 0:00:53.9]} 20. Bxf7 {[%clk 0:00:37.1]} 20... Bxe5 {[%clk
0:00:54.1]} 21. Rxe5 {[%clk 0:00:37]} 21... Rxf7 {[%clk 0:00:49.2]} 22. Ne6
{[%clk 0:00:34.4]} 22... g6 {[%clk 0:00:46.5]} 23. Nxc7 {[%clk 0:00:25.8]} 23...
gxh5 {[%clk 0:00:46.1]} 24. Nxa8 {[%clk 0:00:25.2]} 24... Bxa8 {[%clk 0:00:47]}
25. Rxc5 {[%clk 0:00:24.8]} 25... Ng6 {[%clk 0:00:42.1]} 26. g3 {[%clk
0:00:06.8]} 26... h4 {[%clk 0:00:41.4]} 27. Re1 {[%clk 0:00:06.1]} 27... Rg7
{[%clk 0:00:37]} 28. Kh2 {[%clk 0:00:05.6]} 28... Bb7 {[%clk 0:00:34.5]} 29. Rf5
{[%clk 0:00:04.3]} 29... hxg3+ {[%clk 0:00:31.9]} 30. fxg3 {[%clk 0:00:05.2]}
30... Nh4 {[%clk 0:00:32.5]} 31. Rf4 {[%clk 0:00:03.1]} 31... Nf3+ {[%clk
0:00:32.8]} 32. Rxf3 {[%clk 0:00:03.6]} 32... Bxf3 {[%clk 0:00:33.7]} 33. Re5
{[%clk 0:00:03.9]} 33... Rc7 {[%clk 0:00:33.4]} 34. c3 {[%clk 0:00:03.2]} 34...
dxc3 {[%clk 0:00:33.5]} 35. bxc3 {[%clk 0:00:04.1]} 35... Rxc3 {[%clk
0:00:34.1]} 36. g4 {[%clk 0:00:04.6]} 36... Rxd3 {[%clk 0:00:34]} 0-1

[Event "*** SCC Grand Prix: Titled Tuesday Blitz"]
[Site "Chess.com"]
[Date "2020.06.23"]
[Round "6"]
[White "alexsergeyev"]
[Black "wannabe2700"]
[Result "1-0"]
[WhiteElo "2385"]
[BlackElo "2665"]
[TimeControl "180+1"]
[EndTime "11:06:01 PDT"]
[Termination "alexsergeyev won by resignation"]

1. d4 {[%clk 0:03:00.9]} 1... f5 {[%clk 0:02:59.9]} 2. Nc3 {[%clk 0:02:59.9]}
2... Nf6 {[%clk 0:03:00.4]} 3. Bg5 {[%clk 0:02:57.6]} 3... d5 {[%clk 0:03:00.7]}
4. Bxf6 {[%clk 0:02:54.3]} 4... exf6 {[%clk 0:03:01.1]} 5. e3 {[%clk 0:02:54.3]}
5... Be6 {[%clk 0:03:00.6]} 6. Nf3 {[%clk 0:02:51]} 6... Nc6 {[%clk 0:03:00.9]}
7. Bb5 {[%clk 0:02:49.3]} 7... Qd7 {[%clk 0:03:00.3]} 8. Ne2 {[%clk 0:02:48.2]}
8... Bd6 {[%clk 0:02:58.7]} 9. Qd2 {[%clk 0:02:46.7]} 9... O-O {[%clk
0:02:56.3]} 10. Nf4 {[%clk 0:02:43.9]} 10... Bf7 {[%clk 0:02:54.8]} 11. O-O
{[%clk 0:02:38.6]} 11... g5 {[%clk 0:02:51.9]} 12. Nd3 {[%clk 0:02:37.6]} 12...
a6 {[%clk 0:02:46.1]} 13. Ba4 {[%clk 0:02:35.4]} 13... b5 {[%clk 0:02:22.6]} 14.
Bb3 {[%clk 0:02:34.4]} 14... Ne7 {[%clk 0:02:21.7]} 15. Nc5 {[%clk 0:02:31.9]}
15... Bxc5 {[%clk 0:02:20.2]} 16. dxc5 {[%clk 0:02:31.4]} 16... c6 {[%clk
0:02:16]} 17. Nd4 {[%clk 0:02:28.9]} 17... Kh8 {[%clk 0:01:34.8]} 18. f4 {[%clk
0:02:20.8]} 18... Rg8 {[%clk 0:01:08.9]} 19. a4 {[%clk 0:02:06.6]} 19... gxf4
{[%clk 0:00:40.4]} 20. exf4 {[%clk 0:01:51.5]} 20... Rg4 {[%clk 0:00:35.7]} 21.
Rae1 {[%clk 0:01:44.7]} 21... Rag8 {[%clk 0:00:26.4]} 22. Rf2 {[%clk 0:01:36.6]}
22... Ng6 {[%clk 0:00:22]} 23. c3 {[%clk 0:01:32]} 23... Nh4 {[%clk 0:00:19.4]}
24. g3 {[%clk 0:01:29.6]} 24... R4g7 {[%clk 0:00:15.7]} 25. axb5 {[%clk
0:01:27.9]} 25... cxb5 {[%clk 0:00:15]} 26. Bc2 {[%clk 0:01:27]} 26... a5 {[%clk
0:00:13.9]} 27. Kh1 {[%clk 0:01:22.8]} 27... Bh5 {[%clk 0:00:04.5]} 28. gxh4
{[%clk 0:01:17.6]} 28... Bg4 {[%clk 0:00:04.7]} 29. c6 {[%clk 0:01:13.1]} 29...
Qd6 {[%clk 0:00:04.5]} 30. Qe3 {[%clk 0:01:09.8]} 30... Qc5 {[%clk 0:00:04.3]}
31. Bxf5 {[%clk 0:01:00]} 31... b4 {[%clk 0:00:02.5]} 32. Bxg4 {[%clk
0:00:57.5]} 32... Rxg4 {[%clk 0:00:03]} 33. Qe6 {[%clk 0:00:51.8]} 33... R4g6
{[%clk 0:00:02.1]} 34. h5 {[%clk 0:00:45.6]} 34... Rh6 {[%clk 0:00:02.2]} 35.
Rg2 {[%clk 0:00:42.4]} 35... Rxg2 {[%clk 0:00:01.4]} 36. Kxg2 {[%clk 0:00:41.4]}
36... bxc3 {[%clk 0:00:02]} 37. Qe8+ {[%clk 0:00:40.1]} 1-0

[Event "*** SCC Grand Prix: Titled Tuesday Blitz"]
[Site "Chess.com"]
[Date "2020.06.23"]
[Round "6"]
[White "Godzillator"]
[Black "GM_LOADING"]
[Result "0-1"]
[WhiteElo "2391"]
[BlackElo "2573"]
[TimeControl "180+1"]
[EndTime "11:06:02 PDT"]
[Termination "GM_LOADING won by resignation"]

1. d4 {[%clk 0:03:00.9]} 1... Nf6 {[%clk 0:02:59.3]} 2. c4 {[%clk 0:03:01.2]}
2... e6 {[%clk 0:02:59.4]} 3. Nc3 {[%clk 0:03:01.4]} 3... Bb4 {[%clk 0:02:59.6]}
4. Qc2 {[%clk 0:03:01.9]} 4... Nc6 {[%clk 0:03:00]} 5. Nf3 {[%clk 0:03:01.1]}
5... d6 {[%clk 0:03:00.4]} 6. Bg5 {[%clk 0:03:01.5]} 6... h6 {[%clk 0:02:53.6]}
7. Bd2 {[%clk 0:03:01.7]} 7... e5 {[%clk 0:02:52.9]} 8. dxe5 {[%clk 0:02:58.1]}
8... dxe5 {[%clk 0:02:53]} 9. a3 {[%clk 0:02:58.4]} 9... Bxc3 {[%clk 0:02:52.8]}
10. Bxc3 {[%clk 0:02:58.2]} 10... Qe7 {[%clk 0:02:53.6]} 11. e3 {[%clk
0:02:57.3]} 11... O-O {[%clk 0:02:48.7]} 12. h3 {[%clk 0:02:57.1]} 12... a5
{[%clk 0:02:47.2]} 13. Be2 {[%clk 0:02:57]} 13... a4 {[%clk 0:02:47.6]} 14. O-O
{[%clk 0:02:56.6]} 14... g6 {[%clk 0:02:44.5]} 15. Rad1 {[%clk 0:02:44.6]} 15...
Bf5 {[%clk 0:02:43.8]} 16. Qc1 {[%clk 0:02:42.8]} 16... Nd7 {[%clk 0:02:28]} 17.
Rd5 {[%clk 0:02:39.8]} 17... Be4 {[%clk 0:02:17.6]} 18. Rb5 {[%clk 0:02:38.4]}
18... Nc5 {[%clk 0:02:16.9]} 19. Bb4 {[%clk 0:02:32.6]} 19... Nxb4 {[%clk
0:02:15.6]} 20. axb4 {[%clk 0:02:32.8]} 20... Nb3 {[%clk 0:02:16]} 21. Qc3
{[%clk 0:02:32.3]} 21... f6 {[%clk 0:02:07.5]} 22. Nd2 {[%clk 0:02:29.5]} 22...
Bc6 {[%clk 0:02:05.3]} 23. Nxb3 {[%clk 0:02:08]} 23... Bxb5 {[%clk 0:02:04]} 24.
Na5 {[%clk 0:02:04.7]} 24... Bc6 {[%clk 0:01:48.7]} 25. b5 {[%clk 0:01:32.5]}
25... Be4 {[%clk 0:01:42]} 26. f3 {[%clk 0:01:12.7]} 26... b6 {[%clk 0:01:39.3]}
27. fxe4 {[%clk 0:01:11.2]} 27... Rxa5 {[%clk 0:01:39]} 28. c5 {[%clk
0:01:09.8]} 28... Qxc5 {[%clk 0:01:35.1]} 29. Qxc5 {[%clk 0:01:08.3]} 29... bxc5
{[%clk 0:01:35.1]} 30. Rc1 {[%clk 0:01:08.2]} 30... Rd8 {[%clk 0:00:50.9]} 31.
Rxc5 {[%clk 0:01:06.7]} 31... Rd2 {[%clk 0:00:51.5]} 32. Kf2 {[%clk 0:01:06.1]}
32... Rxb2 {[%clk 0:00:49.2]} 33. Rxc7 {[%clk 0:01:03.5]} 33... Raxb5 {[%clk
0:00:46.4]} 34. Kf3 {[%clk 0:01:00.5]} 34... Ra5 {[%clk 0:00:37.6]} 35. Bc4+
{[%clk 0:01:00.2]} 35... Kf8 {[%clk 0:00:36.9]} 36. Rf7+ {[%clk 0:00:49.4]}
36... Ke8 {[%clk 0:00:36.9]} 37. Rxf6 {[%clk 0:00:49.6]} 37... a3 {[%clk
0:00:37.4]} 38. Rxg6 {[%clk 0:00:48.5]} 38... a2 {[%clk 0:00:36.3]} 39. Bxa2
{[%clk 0:00:48.5]} 39... Raxa2 {[%clk 0:00:37.2]} 40. Re6+ {[%clk 0:00:48.3]}
40... Kf7 {[%clk 0:00:35.2]} 41. Rxe5 {[%clk 0:00:48.4]} 41... Rxg2 {[%clk
0:00:28.9]} 42. Rf5+ {[%clk 0:00:27.4]} 42... Ke6 {[%clk 0:00:28.8]} 43. e5
{[%clk 0:00:25.3]} 43... Kxf5 {[%clk 0:00:27.8]} 0-1

[Event "*** SCC Grand Prix: Titled Tuesday Blitz"]
[Site "Chess.com"]
[Date "2020.06.23"]
[Round "6"]
[White "WiktoriaPOL"]
[Black "Chopper1905"]
[Result "0-1"]
[WhiteElo "1939"]
[BlackElo "2869"]
[TimeControl "180+1"]
[EndTime "11:06:03 PDT"]
[Termination "Chopper1905 won on time"]

1. c4 {[%clk 0:03:00.9]} 1... h6 {[%clk 0:02:56.2]} 2. Nc3 {[%clk 0:03:00.4]}
2... g5 {[%clk 0:02:52.1]} 3. d4 {[%clk 0:02:59.2]} 3... Bg7 {[%clk 0:02:49.2]}
4. e4 {[%clk 0:02:58.3]} 4... d6 {[%clk 0:02:48.1]} 5. Be3 {[%clk 0:02:53.8]}
5... c6 {[%clk 0:02:32]} 6. Qd2 {[%clk 0:02:52.3]} 6... Nf6 {[%clk 0:02:29.4]}
7. f3 {[%clk 0:02:50.2]} 7... a6 {[%clk 0:02:27.5]} 8. Bd3 {[%clk 0:02:42.1]}
8... b5 {[%clk 0:02:13.5]} 9. a3 {[%clk 0:02:35.8]} 9... Nbd7 {[%clk 0:02:13.2]}
10. Nge2 {[%clk 0:02:33.9]} 10... Nb6 {[%clk 0:02:13.2]} 11. c5 {[%clk
0:02:23.7]} 11... Nc4 {[%clk 0:02:06.3]} 12. Bxc4 {[%clk 0:02:22.9]} 12... bxc4
{[%clk 0:02:07.2]} 13. cxd6 {[%clk 0:02:19.3]} 13... exd6 {[%clk 0:02:02.2]} 14.
Qc2 {[%clk 0:02:15.7]} 14... O-O {[%clk 0:01:56.8]} 15. Qa4 {[%clk 0:02:13.4]}
15... d5 {[%clk 0:01:55.3]} 16. e5 {[%clk 0:02:07.5]} 16... Nd7 {[%clk
0:01:47.3]} 17. Qxc6 {[%clk 0:02:03.1]} 17... Nb6 {[%clk 0:01:47.8]} 18. Qc5
{[%clk 0:01:38.8]} 18... Re8 {[%clk 0:01:44.7]} 19. f4 {[%clk 0:01:21.6]} 19...
Bf5 {[%clk 0:01:33.9]} 20. O-O {[%clk 0:01:16.5]} 20... Bd3 {[%clk 0:01:33.3]}
21. fxg5 {[%clk 0:01:15.4]} 21... hxg5 {[%clk 0:01:33.1]} 22. Rf3 {[%clk
0:01:05.1]} 22... Rb8 {[%clk 0:01:09.9]} 23. Raf1 {[%clk 0:00:52.2]} 23... Na4
{[%clk 0:01:10.3]} 24. Nxa4 {[%clk 0:00:27.9]} 24... Bxe2 {[%clk 0:01:09.4]} 25.
Rxf7 {[%clk 0:00:26.6]} 25... Bxf1 {[%clk 0:01:06.7]} 26. Rxf1 {[%clk
0:00:25.6]} 26... Re6 {[%clk 0:01:01]} 27. h4 {[%clk 0:00:19]} 27... gxh4 {[%clk
0:00:54.9]} 28. Qa7 {[%clk 0:00:17.6]} 28... Qe8 {[%clk 0:00:43.4]} 29. Nc5
{[%clk 0:00:15]} 29... Rg6 {[%clk 0:00:43.9]} 30. Rf2 {[%clk 0:00:09.5]} 30...
h3 {[%clk 0:00:43.6]} 31. Nxa6 {[%clk 0:00:05.3]} 31... Ra8 {[%clk 0:00:40.9]}
32. Nc7 {[%clk 0:00:03.7]} 32... Rxa7 {[%clk 0:00:40.4]} 33. Nxe8 {[%clk
0:00:03.8]} 33... Rf7 {[%clk 0:00:36.8]} 34. Rxf7 {[%clk 0:00:03]} 34... Rxg2+
{[%clk 0:00:37.4]} 35. Kh1 {[%clk 0:00:02.4]} 35... Kxf7 {[%clk 0:00:38.2]} 36.
Nxg7 {[%clk 0:00:02.4]} 36... Kxg7 {[%clk 0:00:39.1]} 37. a4 {[%clk 0:00:01.3]}
37... Rxb2 {[%clk 0:00:38.7]} 38. a5 {[%clk 0:00:01.6]} 38... c3 {[%clk
0:00:39.3]} 39. a6 {[%clk 0:00:01.3]} 39... Ra2 {[%clk 0:00:40.2]} 0-1

[Event "*** SCC Grand Prix: Titled Tuesday Blitz"]
[Site "Chess.com"]
[Date "2020.06.23"]
[Round "6"]
[White "Alindsay211"]
[Black "c63_amg"]
[Result "0-1"]
[WhiteElo "2295"]
[BlackElo "2748"]
[TimeControl "180+1"]
[EndTime "11:06:04 PDT"]
[Termination "c63_amg won on time"]

1. e4 {[%clk 0:03:00.9]} 1... c5 {[%clk 0:02:51]} 2. Nf3 {[%clk 0:02:59.7]} 2...
d6 {[%clk 0:02:50.8]} 3. d4 {[%clk 0:02:49.6]} 3... cxd4 {[%clk 0:02:51.7]} 4.
Nxd4 {[%clk 0:02:50]} 4... Nf6 {[%clk 0:02:50.4]} 5. Nc3 {[%clk 0:02:50.1]} 5...
a6 {[%clk 0:02:49.9]} 6. h3 {[%clk 0:02:50.5]} 6... e5 {[%clk 0:02:48.5]} 7.
Nde2 {[%clk 0:02:50.2]} 7... h5 {[%clk 0:02:47.8]} 8. Bg5 {[%clk 0:02:48.4]}
8... Be7 {[%clk 0:02:47.1]} 9. Qd3 {[%clk 0:02:44.2]} 9... Be6 {[%clk
0:02:44.8]} 10. Bxf6 {[%clk 0:02:44.3]} 10... Bxf6 {[%clk 0:02:42.3]} 11. Nd5
{[%clk 0:02:44.9]} 11... Bg5 {[%clk 0:02:36.5]} 12. Nec3 {[%clk 0:02:43.8]}
12... Nd7 {[%clk 0:02:36.6]} 13. g3 {[%clk 0:02:23.3]} 13... h4 {[%clk
0:02:31.8]} 14. Bg2 {[%clk 0:02:21.1]} 14... Rc8 {[%clk 0:02:30.3]} 15. Ne3
{[%clk 0:01:59.5]} 15... hxg3 {[%clk 0:02:25.6]} 16. fxg3 {[%clk 0:01:57.9]}
16... Nc5 {[%clk 0:02:25.2]} 17. Qe2 {[%clk 0:01:57.5]} 17... Qa5 {[%clk
0:02:12.3]} 18. O-O {[%clk 0:01:44.6]} 18... Qb6 {[%clk 0:01:42.1]} 19. h4
{[%clk 0:01:13.7]} 19... Bxe3+ {[%clk 0:01:23.8]} 20. Qxe3 {[%clk 0:01:13.2]}
20... Qxb2 {[%clk 0:01:23.5]} 21. Rad1 {[%clk 0:00:49]} 21... Nd7 {[%clk
0:01:08.2]} 22. Nd5 {[%clk 0:00:29.8]} 22... Bxd5 {[%clk 0:00:52.7]} 23. Rxd5
{[%clk 0:00:30.7]} 23... Rxc2 {[%clk 0:00:30.3]} 24. Bh3 {[%clk 0:00:27.9]}
24... Nb6 {[%clk 0:00:19.2]} 25. Qf3 {[%clk 0:00:18.3]} 25... O-O {[%clk
0:00:17.2]} 26. Rxd6 {[%clk 0:00:18.3]} 26... Nc4 {[%clk 0:00:16.3]} 27. Rd3
{[%clk 0:00:11.5]} 27... Nd2 {[%clk 0:00:16.3]} 28. Qh5 {[%clk 0:00:08.4]} 28...
Qb6+ {[%clk 0:00:12.9]} 29. Kh1 {[%clk 0:00:04.7]} 29... Nxf1 {[%clk 0:00:13.3]}
30. Bxf1 {[%clk 0:00:05.3]} 30... Qf2 {[%clk 0:00:12.5]} 0-1